fUST/lending_fUST_20240826
["ID","MTS","AMOUNT","RATE_DAILY","PERIOD"]
[336048332,1724681364753,-500.0,0.00011518,2]
[336048333,1724681364774,-500.0,0.00011518,2]
[336048334,1724681364796,-500.0,0.00011518,2]
[336048335,1724681364820,-500.0,0.00011518,2]
[336048336,1724681364842,-500.0,0.00011518,2]
[336048337,1724681364863,-500.0,0.00011518,2]
[336048338,1724681364883,-572.35,0.00011518,2]
[336048339,1724681364905,-500.0,0.00011518,2]
[336048340,1724681364925,-500.0,0.00011518,2]
[336048341,1724681364945,-500.0,0.00011518,2]
[336048342,1724681364966,-500.0,0.00011518,2]
[336048343,1724681364987,-655.67,0.00011518,2]
[336048344,1724681365007,-500.0,0.00011518,2]
[336048345,1724681365027,-500.0,0.00011518,2]
[336048346,1724681365048,-1152.02,0.00011518,2]
[336048347,1724681365071,-500.0,0.00011518,2]
[336048348,1724681365092,-500.0,0.00011518,2]
[336048349,1724681365112,-500.0,0.00011518,2]
[336048350,1724681365133,-708.92,0.00011518,2]
[336048351,1724681365153,-500.0,0.00011518,2]
[336048352,1724681365174,-500.37530072,0.00011518,2]
[336048353,1724681365196,-1141.41,0.00011518,2]
[336048354,1724681365217,-500.0,0.00011518,2]
[336048355,1724681365239,-500.0,0.00011518,2]
[336048356,1724681365261,-500.0,0.00011518,2]
[336048357,1724681365283,-1151.15,0.00011518,2]
[336048358,1724681365305,-1996.82,0.00011518,2]
[336048359,1724681365330,-500.0,0.00011518,2]
[336048360,1724681365353,-500.0,0.00011518,2]
[336048361,1724681365374,-500.0,0.00011518,2]
[336048362,1724681365397,-324.53343167,0.00011518,2]
[336048369,1724681406476,129.06559199,0.00011409,2]
[336048394,1724681431909,-25.66363187,0.00011409,2]
[336048395,1724681431929,-300.0,0.00011516,2]
[336048396,1724681431942,-500.0,0.00011517,2]
[336048397,1724681431953,-500.0,0.00011517,2]
[336048398,1724681431965,-705.15,0.00011517,2]
[336048399,1724681431974,-661.36,0.00011517,2]
[336048400,1724681431984,-580.82,0.00011517,2]
[336048401,1724681431994,-500.0,0.00011517,2]
[336048402,1724681432004,-500.0,0.00011517,2]
[336048403,1724681432014,-387.0694549,0.00011517,2]
[336048426,1724681437960,-1547.87289514,0.00011409,2]
[336048428,1724681437971,-251.0205451,0.00011517,2]
[336048431,1724681437980,-500.0,0.00011517,2]
[336048432,1724681437990,-500.0,0.00011517,2]
[336048435,1724681438000,-500.0,0.00011517,2]
[336048437,1724681438009,-1221.87,0.00011517,2]
[336048439,1724681438019,-500.0,0.00011517,2]
[336048440,1724681438028,-500.0,0.00011517,2]
[336048442,1724681438038,-500.0,0.00011517,2]
[336048444,1724681438047,-500.0,0.00011517,2]
[336048446,1724681438057,-500.0,0.00011517,2]
[336048449,1724681438066,-500.0,0.00011517,2]
[336048451,1724681438076,-633.26,0.00011517,2]
[336048454,1724681438086,-179.5585462,0.00011517,2]
[336048456,1724681438095,-500.0,0.00011517,2]
[336048458,1724681438105,-705.63,0.00011517,2]
[336048459,1724681438114,-500.0,0.00011517,2]
[336048461,1724681438123,-500.0,0.00011517,2]
[336048464,1724681438133,-500.0,0.00011517,2]
[336048466,1724681438142,-175.46656833,0.00011518,2]
[336048468,1724681438152,-500.0,0.00011518,2]
[336048470,1724681438161,-500.0,0.00011518,2]
[336048471,1724681438171,-500.0,0.00011518,2]
[336048473,1724681438180,-500.0,0.00011518,2]
[336048476,1724681438189,-500.0,0.00011518,2]
[336048477,1724681438198,-500.0,0.00011518,2]
[336048479,1724681438208,-519.49,0.00011518,2]
[336048480,1724681438217,-503.38748116,0.00011518,2]
[336048481,1724681438227,-223.1462783,0.00011518,2]
[336048482,1724681439120,-276.8537217,0.00011518,2]
[336048483,1724681439129,-1176.24,0.00011518,2]
[336048484,1724681439138,-502.91890564,0.00011518,2]
[336048485,1724681439145,-500.37794862,0.00011518,2]
[336048486,1724681439155,-500.0,0.00011518,2]
[336048487,1724681439163,-500.0,0.00011518,2]
[336048488,1724681439172,-500.0,0.00011518,2]
[336048489,1724681439179,-500.0,0.00011518,2]
[336048490,1724681439186,-210.58092546,0.00011518,2]
[336048491,1724681439195,-500.0,0.00011518,2]
[336048492,1724681439203,-782.93,0.00011518,2]
[336048493,1724681439210,-500.0,0.00011518,2]
[336048494,1724681439217,-688.0,0.00011518,2]
[336048495,1724681439224,-500.0,0.00011518,2]
[336048496,1724681439232,-677.19,0.00011518,2]
[336048497,1724681439239,-500.0,0.00011518,2]
[336048498,1724681439246,-589.44,0.00011518,2]
[336048499,1724681439254,-500.0,0.00011518,2]
[336048500,1724681439262,-949.39,0.00011518,2]
[336048501,1724681439271,-500.0,0.00011518,2]
[336048502,1724681439279,-500.0,0.00011518,2]
[336048503,1724681439285,-161.61119404,0.00011518,2]
[336048504,1724681439292,-506.5,0.00011518,2]
[336048505,1724681439299,-501.5063266,0.00011518,2]
[336048506,1724681439306,-500.0,0.00011518,2]
[336048507,1724681439312,-692.04,0.00011518,2]
[336048508,1724681439319,-500.0,0.00011518,2]
[336048509,1724681439326,-615.61381898,0.00011518,2]
[336048510,1724681439332,-1037.95,0.00011518,2]
[336048511,1724681439338,-500.0,0.00011518,2]
[336048512,1724681439345,-530.11209033,0.00011518,2]
[336048513,1724681439351,-111.71061886,0.00011518,2]
[336048514,1724681439360,-413.76938114,0.00011518,2]
[336048515,1724681439368,-500.0,0.00011518,2]
[336048516,1724681439380,-500.0,0.00011518,2]
[336048517,1724681439387,-500.0,0.00011518,2]
[336048518,1724681439396,-500.0,0.00011518,2]
[336048519,1724681439408,-500.0,0.00011518,2]
[336048520,1724681439418,-500.0,0.00011518,2]
[336048521,1724681439427,-500.0,0.00011518,2]
[336048522,1724681439436,-1220.23,0.00011518,2]
[336048523,1724681439445,-698.62,0.00011518,2]
[336048525,1724681439457,-500.0,0.00011518,2]
[336048526,1724681439468,-679.38,0.00011518,2]
[336048527,1724681439477,-500.0,0.00011518,2]
[336048528,1724681439487,-500.0,0.00011518,2]
[336048529,1724681439496,-1338.23,0.00011518,2]
[336048530,1724681439505,-500.0,0.00011518,2]
[336048531,1724681439515,-500.0,0.00011518,2]
[336048532,1724681439524,-500.0,0.00011518,2]
[336048533,1724681439533,-500.0,0.00011518,2]
[336048534,1724681439542,-1017.57,0.00011518,2]
[336048535,1724681439552,-520.41606326,0.00011518,2]
[336048536,1724681439562,-500.0,0.00011518,2]
[336048537,1724681439571,-740.03,0.00011518,2]
[336048538,1724681439580,-207.51888138,0.00011518,2]
[336048540,1724681439589,-539.92,0.00011518,2]
[336048541,1724681439599,-500.0,0.00011518,2]
[336048542,1724681439608,-956.97,0.00011518,2]
[336048543,1724681439618,-511.81065849,0.00011518,2]
[336048545,1724681439627,-3289.8,0.00011518,2]
[336048547,1724681439637,-439.80647494,0.00011555,2]
[336048549,1724681439646,-500.0,0.00011616,2]
[336048550,1724681439657,-500.0,0.00011616,2]
[336048551,1724681439666,-500.0,0.00011616,2]
[336048552,1724681439676,-500.0,0.00011616,2]
[336048553,1724681439686,-500.0,0.00011616,2]
[336048554,1724681439697,-502.72,0.00011616,2]
[336048556,1724681439706,-2451.44,0.00011616,2]
[336048558,1724681439718,-2451.44,0.00011616,2]
[336048560,1724681439729,-500.0,0.00011616,2]
[336048562,1724681439739,-500.0,0.00011616,2]
[336048564,1724681439750,-500.0,0.00011616,2]
[336048566,1724681439760,-500.0,0.00011616,2]
[336048568,1724681439770,-500.0,0.00011617,2]
[336048570,1724681439780,-500.0,0.00011617,2]
[336048572,1724681439789,-614.2,0.00011617,2]
[336048574,1724681439798,-410.86411606,0.00011617,2]
[336048576,1724681439807,-548.93,0.00011617,2]
[336048578,1724681439817,-344.55936161,0.00011617,2]
[336048580,1724681439826,-500.0,0.00011617,2]
[336048582,1724681439836,-500.0,0.00011617,2]
[336048584,1724681439845,-667.93,0.00011617,2]
[336048586,1724681439854,-615.5,0.00011617,2]
[336048588,1724681439863,-615.5,0.00011617,2]
[336048590,1724681439872,-541.49,0.00011617,2]
[336048592,1724681439883,-814.75,0.00011617,2]
[336048594,1724681439892,-584.56815414,0.00011617,2]
[336048596,1724681439903,-500.0,0.00011617,2]
[336048598,1724681439912,-888.65,0.00011617,2]
[336048600,1724681439921,-500.0,0.00011617,2]
[336048602,1724681439930,-748.53,0.00011617,2]
[336048604,1724681439939,-500.0,0.00011617,2]
[336048606,1724681439948,-500.0,0.00011617,2]
[336048608,1724681439957,-633.68,0.00011617,2]
[336048610,1724681439967,-822.21,0.00011617,2]
[336048612,1724681439977,-500.0,0.00011617,2]
[336048614,1724681439986,-500.0,0.00011617,2]
[336048616,1724681439996,-774.72,0.00011617,2]
[336048618,1724681440006,-500.0,0.00011617,2]
[336048620,1724681440015,-500.0,0.00011617,2]
[336048622,1724681440024,-500.0,0.00011617,2]
[336048624,1724681440033,-500.0,0.00011617,2]
[336048626,1724681440043,-525.38,0.00011617,2]
[336048628,1724681440052,-500.0,0.00011617,2]
[336048630,1724681440061,-695.48,0.00011617,2]
[336048632,1724681440070,-500.0,0.00011617,2]
[336048634,1724681440080,-500.0,0.00011617,2]
[336048636,1724681440089,-500.0,0.00011617,2]
[336048638,1724681440099,-1114.79,0.00011617,2]
[336048640,1724681440108,-500.0,0.00011617,2]
[336048642,1724681440117,-500.0,0.00011617,2]
[336048644,1724681440127,-500.0,0.00011617,2]
[336048646,1724681440136,-500.0,0.00011617,2]
[336048648,1724681440146,-674.26,0.00011617,2]
[336048650,1724681440159,-500.0,0.00011617,2]
[336048652,1724681440169,-500.0,0.00011617,2]
[336048654,1724681440179,-1112.07,0.00011617,2]
[336048656,1724681440189,-612.39,0.00011617,2]
[336048658,1724681440199,-500.0,0.00011617,2]
[336048660,1724681440208,-395.55963126,0.00011617,2]
[336048663,1724681440219,-500.0,0.00011617,2]
[336048665,1724681440229,-1127.7,0.00011617,2]
[336048667,1724681440239,-500.0,0.00011617,2]
[336048669,1724681440249,-500.0,0.00011617,2]
[336048671,1724681440259,-1227.85,0.00011617,2]
[336048673,1724681440268,-927.24,0.00011617,2]
[336048675,1724681440278,-500.0,0.00011617,2]
[336048677,1724681440288,-595.77,0.00011617,2]
[336048679,1724681440297,-500.0,0.00011617,2]
[336048681,1724681440307,-500.0,0.00011617,2]
[336048683,1724681440316,-500.0,0.00011617,2]
[336048685,1724681440326,-1134.06,0.00011617,2]
[336048687,1724681440336,-500.0,0.00011617,2]
[336048689,1724681440346,-605.11,0.00011617,2]
[336048691,1724681440356,-2451.44,0.00011617,2]
[336048693,1724681440366,-2451.44,0.00011617,2]
[336048695,1724681440380,-2451.44,0.00011617,2]
[336048697,1724681440388,-641.22,0.00011617,2]
[336048699,1724681440398,-1058.15,0.00011617,2]
[336048701,1724681440408,-500.0,0.00011617,2]
[336048703,1724681440418,-500.0,0.00011617,2]
[336048727,1724681440632,-500.0,0.00011617,2]
[336048729,1724681440643,-1881.08,0.00011617,2]
[336048731,1724681440652,-1881.08,0.00011617,2]
[336048733,1724681440662,-500.0,0.00011617,2]
[336048735,1724681440672,-1004.4,0.00011617,2]
[336048737,1724681440682,-500.0,0.00011617,2]
[336048739,1724681440691,-873.92,0.00011617,2]
[336048741,1724681440701,-500.0,0.00011617,2]
[336048743,1724681440710,-500.0,0.00011617,2]
[336048745,1724681440720,-1332.86,0.00011617,2]
[336048747,1724681440729,-500.0,0.00011617,2]
[336048749,1724681440738,-500.0,0.00011617,2]
[336048751,1724681440747,-747.81,0.00011617,2]
[336048753,1724681440757,-502.3,0.00011617,2]
[336048755,1724681440766,-505.39252896,0.00011617,2]
[336048757,1724681440776,-1115.05,0.00011617,2]
[336048759,1724681440786,-500.0,0.00011618,2]
[336048761,1724681440795,-494.36229341,0.00011618,2]
[336048763,1724681440805,-500.0,0.00011618,2]
[336048765,1724681440815,-500.0,0.00011618,2]
[336048767,1724681440825,-500.0,0.00011618,2]
[336048769,1724681440835,-295.15806935,0.00011618,2]
[336048771,1724681440845,-500.0,0.00011618,2]
[336048773,1724681440854,-690.49,0.00011618,2]
[336048775,1724681440864,-500.0,0.00011618,2]
[336048777,1724681440874,-575.19,0.00011618,2]
[336048779,1724681440883,-500.0,0.00011618,2]
[336048781,1724681440892,-519.42282598,0.00011618,2]
[336048783,1724681440904,-500.0,0.00011618,2]
[336048785,1724681440915,-500.0,0.00011618,2]
[336048788,1724681440925,-580.55,0.00011618,2]
[336048790,1724681440935,-507.25,0.00011618,2]
[336048792,1724681440944,-500.0,0.00011618,2]
[336048794,1724681440954,-500.0,0.00011618,2]
[336048795,1724681440963,-1188.66,0.00011618,2]
[336048796,1724681440973,-500.0,0.00011618,2]
[336048797,1724681440983,-500.0,0.00011618,2]
[336048798,1724681440994,-500.0,0.00011618,2]
[336048799,1724681441005,-500.0,0.00011618,2]
[336048800,1724681441014,-671.76,0.00011618,2]
[336048801,1724681441024,-500.0,0.00011618,2]
[336048802,1724681441035,-500.0,0.00011618,2]
[336048803,1724681441045,-500.0,0.00011618,2]
[336048804,1724681441055,-739.87,0.00011618,2]
[336048805,1724681441064,-500.0,0.00011618,2]
[336048806,1724681441074,-899.14,0.00011618,2]
[336048807,1724681441084,-500.0,0.00011618,2]
[336048808,1724681441094,-500.0,0.00011618,2]
[336048809,1724681441103,-928.9,0.00011618,2]
[336048810,1724681441113,-500.0,0.00011618,2]
[336048811,1724681441122,-714.49,0.00011618,2]
[336048812,1724681441132,-500.0,0.00011618,2]
[336048814,1724681441142,-500.0,0.00011618,2]
[336048816,1724681441153,-500.0,0.00011618,2]
[336048818,1724681441163,-500.0,0.00011618,2]
[336048820,1724681441173,-504.65,0.00011618,2]
[336048822,1724681441183,-500.0,0.00011618,2]
[336048824,1724681441193,-500.0,0.00011618,2]
[336048826,1724681441202,-500.0,0.00011618,2]
[336048828,1724681441213,-500.0,0.00011618,2]
[336048830,1724681441222,-637.95,0.00011618,2]
[336048832,1724681441232,-877.54,0.00011618,2]
[336048834,1724681441242,-613.85,0.00011618,2]
[336048836,1724681441251,-500.0,0.00011618,2]
[336048838,1724681441261,-500.0,0.00011618,2]
[336048840,1724681441271,-500.0,0.00011618,2]
[336048842,1724681441280,-500.0,0.00011618,2]
[336048843,1724681441289,-605.53,0.00011618,2]
[336048845,1724681441300,-500.0,0.00011618,2]
[336048847,1724681441309,-500.0,0.00011618,2]
[336048849,1724681441320,-500.0,0.00011618,2]
[336048851,1724681441330,-500.0,0.00011618,2]
[336048853,1724681441340,-500.0,0.00011618,2]
[336048855,1724681441350,-500.0,0.00011618,2]
[336048857,1724681441360,-500.0,0.00011618,2]
[336048859,1724681441370,-756.1,0.00011618,2]
[336048861,1724681441384,-500.0,0.00011618,2]
[336048863,1724681441393,-563.1,0.00011618,2]
[336048865,1724681441404,-500.0,0.00011618,2]
[336048867,1724681441415,-500.0,0.00011618,2]
[336048869,1724681441426,-657.91,0.00011618,2]
[336048871,1724681441435,-500.0,0.00011618,2]
[336048873,1724681441444,-500.0,0.00011618,2]
[336048875,1724681441455,-733.8,0.00011618,2]
[336048877,1724681441465,-500.0,0.00011618,2]
[336048879,1724681441475,-500.0,0.00011618,2]
[336048881,1724681441484,-500.0,0.00011618,2]
[336048883,1724681441494,-507.11,0.00011618,2]
[336048885,1724681441504,-500.0,0.00011618,2]
[336048887,1724681441513,-500.0,0.00011618,2]
[336048889,1724681441523,-500.0,0.00011618,2]
[336048891,1724681441533,-500.0,0.00011618,2]
[336048893,1724681441543,-542.34,0.00011618,2]
[336048895,1724681441555,-278.83849788,0.00011618,2]
[336048897,1724681441566,-500.0,0.00011618,2]
[336048899,1724681441576,-500.0,0.00011618,2]
[336048901,1724681441585,-626.88,0.00011618,2]
[336048903,1724681441594,-500.0,0.00011618,2]
[336048905,1724681441604,-500.0,0.00011618,2]
[336048907,1724681441613,-500.0,0.00011618,2]
[336048909,1724681441622,-500.0,0.00011618,2]
[336048911,1724681441631,-543.22,0.00011618,2]
[336048913,1724681441641,-500.0,0.00011618,2]
[336048915,1724681441650,-500.0,0.00011618,2]
[336048917,1724681441662,-501.23921092,0.00011618,2]
[336048919,1724681441672,-518.3055938,0.00011618,2]
[336048921,1724681441681,-500.0,0.00011618,2]
[336048923,1724681441691,-500.0,0.00011618,2]
[336048925,1724681441700,-500.0,0.00011618,2]
[336048927,1724681441709,-500.0,0.00011618,2]
[336048929,1724681441719,-500.0,0.00011618,2]
[336048931,1724681441729,-500.0,0.00011618,2]
[336048933,1724681441739,-163.11820704,0.00011618,2]
[336048935,1724681441748,-500.0,0.00011618,2]
[336048937,1724681441757,-500.0,0.00011618,2]
[336048939,1724681441766,-500.0,0.00011618,2]
[336048941,1724681441776,-500.0,0.00011618,2]
[336048943,1724681441786,-500.0,0.00011618,2]
[336048945,1724681441795,-500.0,0.00011618,2]
[336048947,1724681441805,-500.0,0.00011618,2]
[336048949,1724681441815,-627.63901446,0.00011618,2]
[336048951,1724681441825,-500.0,0.00011618,2]
[336048953,1724681441834,-500.0,0.00011618,2]
[336048955,1724681441844,-435.51586744,0.00011618,2]
[336048957,1724681441854,-500.0,0.00011618,2]
[336048959,1724681441865,-500.0,0.00011618,2]
[336048961,1724681441875,-500.0,0.00011618,2]
[336048963,1724681441885,-500.0,0.00011618,2]
[336048964,1724681441895,-500.0,0.00011618,2]
[336048965,1724681441911,-500.0,0.00011618,2]
[336048966,1724681441923,-615.5,0.00011618,2]
[336048967,1724681441931,-615.5,0.00011618,2]
[336048968,1724681441941,-500.0,0.00011618,2]
[336048970,1724681441950,-908.41,0.00011618,2]
[336048972,1724681441959,-500.0,0.00011618,2]
[336048974,1724681441968,-539.64,0.00011618,2]
[336048976,1724681441977,-725.64,0.00011618,2]
[336048978,1724681441986,-568.99,0.00011618,2]
[336048980,1724681441996,-500.0,0.00011618,2]
[336048982,1724681442005,-500.0,0.00011618,2]
[336048983,1724681442014,-500.0,0.00011618,2]
[336048985,1724681442024,-500.0,0.00011618,2]
[336048987,1724681442034,-500.0,0.00011618,2]
[336048989,1724681442044,-500.0,0.00011618,2]
[336048991,1724681442054,-500.0,0.00011618,2]
[336048993,1724681442063,-500.3351258,0.00011618,2]
[336048995,1724681442074,-500.0,0.00011618,2]
[336048997,1724681442083,-500.0,0.00011618,2]
[336048999,1724681442092,-712.03,0.00011618,2]
[336049000,1724681442101,-500.0,0.00011618,2]
[336049003,1724681442111,-873.27,0.00011618,2]
[336049005,1724681442121,-628.76,0.00011618,2]
[336049007,1724681442131,-500.0,0.00011618,2]
[336049009,1724681442140,-500.0,0.00011618,2]
[336049011,1724681442150,-200.8976722,0.00011618,2]
[336049013,1724681442163,-500.0,0.00011618,2]
[336049015,1724681442173,-500.0,0.00011618,2]
[336049017,1724681442183,-500.0,0.00011618,2]
[336049019,1724681442192,-500.0,0.00011618,2]
[336049021,1724681442202,-500.0,0.00011618,2]
[336049023,1724681442212,-500.0,0.00011618,2]
[336049025,1724681442222,-500.0,0.00011618,2]
[336049027,1724681442232,-647.39,0.00011618,2]
[336049029,1724681442241,-500.0,0.00011618,2]
[336049031,1724681442251,-500.0,0.00011618,2]
[336049033,1724681442260,-500.0,0.00011618,2]
[336049035,1724681442271,-904.0,0.00011618,2]
[336049037,1724681442282,-500.0,0.00011618,2]
[336049039,1724681442293,-538.45672411,0.00011618,2]
[336049041,1724681442303,-500.0,0.00011618,2]
[336049043,1724681442314,-644.11,0.00011618,2]
[336049045,1724681442323,-936.12,0.00011618,2]
[336049047,1724681442333,-500.0,0.00011618,2]
[336049049,1724681442342,-500.0,0.00011618,2]
[336049051,1724681442352,-501.06985479,0.00011618,2]
[336049053,1724681442361,-500.0,0.00011618,2]
[336049055,1724681442371,-500.0,0.00011618,2]
[336049057,1724681442384,-868.06,0.00011618,2]
[336049059,1724681442394,-1052.76,0.00011618,2]
[336049061,1724681442403,-500.0,0.00011618,2]
[336049063,1724681442417,-500.0,0.00011618,2]
[336049064,1724681442427,-500.0,0.00011618,2]
[336049066,1724681442436,-670.44,0.00011618,2]
[336049068,1724681442445,-500.0,0.00011618,2]
[336049070,1724681442456,-500.0,0.00011618,2]
[336049072,1724681442466,-1542.58,0.00011618,2]
[336049074,1724681442476,-500.0,0.00011618,2]
[336049076,1724681442486,-500.0,0.00011618,2]
[336049078,1724681442495,-501.42254574,0.00011618,2]
[336049080,1724681442505,-215.74741883,0.00011618,2]
[336049082,1724681442515,-786.13,0.00011618,2]
[336049084,1724681442525,-500.0,0.00011618,2]
[336049087,1724681442534,-500.0,0.00011618,2]
[336049089,1724681442544,-903.0,0.00011618,2]
[336049091,1724681442554,-500.0,0.00011618,2]
[336049093,1724681442563,-500.0,0.00011618,2]
[336049095,1724681442573,-473.34690368,0.00011618,2]
[336049097,1724681442582,-500.0,0.00011618,2]
[336049099,1724681442592,-869.84,0.00011618,2]
[336049102,1724681442602,-2451.44,0.00011618,2]
[336049104,1724681442612,-2451.44,0.00011618,2]
[336049106,1724681442621,-500.0,0.00011618,2]
[336049109,1724681442631,-558.76,0.00011618,2]
[336049111,1724681442640,-525.06654566,0.00011618,2]
[336049113,1724681442649,-500.0,0.00011618,2]
[336049115,1724681442662,-500.0,0.00011618,2]
[336049117,1724681442671,-500.0,0.00011618,2]
[336049119,1724681442681,-526.77,0.00011618,2]
[336049121,1724681442691,-500.0,0.00011618,2]
[336049123,1724681442700,-345.71413208,0.00011618,2]
[336049125,1724681442710,-500.0,0.00011618,2]
[336049127,1724681442720,-500.69510474,0.00011618,2]
[336049129,1724681442729,-1001.16,0.00011618,2]
[336049131,1724681442738,-500.0,0.00011618,2]
[336049133,1724681442748,-1881.08,0.00011618,2]
[336049135,1724681442759,-500.0,0.00011618,2]
[336049137,1724681442769,-1881.08,0.00011618,2]
[336049139,1724681442778,-500.0,0.00011618,2]
[336049141,1724681442788,-501.02005856,0.00011618,2]
[336049143,1724681442797,-500.0,0.00011618,2]
[336049145,1724681442806,-1521.58,0.00011618,2]
[336049147,1724681442816,-500.5040407,0.00011618,2]
[336049149,1724681442825,-500.0,0.00011618,2]
[336049151,1724681442835,-1070.99,0.00011618,2]
[336049153,1724681442844,-500.0,0.00011618,2]
[336049155,1724681442854,-500.0,0.00011618,2]
[336049157,1724681442864,-500.0,0.00011618,2]
[336049159,1724681442873,-500.89314511,0.00011618,2]
[336049161,1724681442883,-757.76,0.00011618,2]
[336049163,1724681442893,-500.0,0.00011618,2]
[336049165,1724681442902,-500.0,0.00011618,2]
[336049167,1724681442913,-906.12,0.00011618,2]
[336049169,1724681442923,-500.90491397,0.00011618,2]
[336049171,1724681442932,-500.0,0.00011618,2]
[336049173,1724681442942,-500.0,0.00011618,2]
[336049175,1724681442952,-500.0,0.00011618,2]
[336049177,1724681442961,-500.0,0.00011618,2]
[336049179,1724681442970,-500.0,0.00011618,2]
[336049181,1724681442980,-500.0,0.00011618,2]
[336049183,1724681442989,-500.0,0.00011618,2]
[336049185,1724681442999,-500.0,0.00011618,2]
[336049187,1724681443008,-500.0,0.00011618,2]
[336049189,1724681443018,-500.0,0.00011618,2]
[336049191,1724681443028,-500.0,0.00011618,2]
[336049193,1724681443037,-500.0,0.00011618,2]
[336049195,1724681443046,-224.6783368,0.00011618,2]
[336049197,1724681443056,-500.0,0.00011618,2]
[336049199,1724681443065,-500.0,0.00011618,2]
[336049201,1724681443075,-500.90635442,0.00011618,2]
[336049203,1724681443084,-500.0,0.00011618,2]
[336049205,1724681443093,-500.0,0.00011618,2]
[336049207,1724681443103,-500.0,0.00011618,2]
[336049209,1724681443112,-500.0,0.00011618,2]
[336049211,1724681443122,-500.0,0.00011618,2]
[336049213,1724681443131,-500.91035663,0.00011618,2]
[336049216,1724681443141,-507.22816227,0.00011618,2]
[336049218,1724681443150,-500.0,0.00011618,2]
[336049219,1724681443161,-803.74,0.00011618,2]
[336049222,1724681443171,-500.0,0.00011619,2]
[336049224,1724681443180,-500.0,0.00011619,2]
[336049226,1724681443190,-500.0,0.00011619,2]
[336049228,1724681443200,-500.0,0.00011619,2]
[336049230,1724681443209,-500.0,0.00011619,2]
[336049232,1724681443218,-500.0,0.00011619,2]
[336049233,1724681443228,-500.0,0.00011619,2]
[336049236,1724681443238,-500.0,0.00011619,2]
[336049239,1724681443248,-500.0,0.00011619,2]
[336049241,1724681443258,-500.0,0.00011619,2]
[336049243,1724681443267,-500.0,0.00011619,2]
[336049245,1724681443276,-500.0,0.00011619,2]
[336049247,1724681443285,-500.0,0.00011619,2]
[336049248,1724681443295,-500.0,0.00011619,2]
[336049250,1724681443304,-500.0,0.00011619,2]
[336049252,1724681443313,-500.0,0.00011619,2]
[336049254,1724681443324,-500.0,0.00011619,2]
[336049257,1724681443333,-500.0,0.00011619,2]
[336049259,1724681443343,-500.0,0.00011619,2]
[336049260,1724681443352,-500.0,0.00011619,2]
[336049262,1724681443361,-500.0,0.00011619,2]
[336049264,1724681443370,-500.0,0.00011619,2]
[336049266,1724681443384,-500.0,0.00011619,2]
[336049268,1724681443393,-500.0,0.00011619,2]
[336049270,1724681443403,-500.0,0.00011619,2]
[336049272,1724681443415,-500.0,0.00011619,2]
[336049274,1724681443425,-500.0,0.00011619,2]
[336049276,1724681443434,-500.21657969,0.00011619,2]
[336049278,1724681443443,-941.66,0.00011619,2]